fUST/lending_fUST_20250701
["ID","MTS","AMOUNT","RATE_DAILY","PERIOD"]
[368832708,1751375450979,-460.0,0.00018194,2]
[368832710,1751375450990,-460.0,0.00018194,2]
[368832712,1751375451000,-460.0,0.00018194,2]
[368832714,1751375451010,-470.0,0.00018194,2]
[368832716,1751375451021,-460.0,0.00018194,2]
[368832718,1751375451032,-460.0,0.00018194,2]
[368832720,1751375451043,-460.0,0.00018194,2]
[368832722,1751375451054,-460.0,0.00018194,2]
[368832724,1751375451064,-460.0,0.00018194,2]
[368832726,1751375451074,-215.00519394,0.00018194,2]
[368832728,1751375451084,-531.79,0.00018194,2]
[368832730,1751375451094,-460.0,0.00018194,2]
[368832732,1751375451104,-460.0,0.00018194,2]
[368832733,1751375451113,-460.0,0.00018194,2]
[368832735,1751375451122,-460.0,0.00018194,2]
[368832737,1751375451131,-460.0,0.00018194,2]
[368832739,1751375451140,-460.0,0.00018194,2]
[368832741,1751375451149,-775.82,0.00018194,2]
[368832742,1751375451159,-460.0,0.00018194,2]
[368832743,1751375451170,-460.0,0.00018194,2]
[368832744,1751375451179,-478.634196,0.00018194,2]
[368832745,1751375451188,-460.0,0.00018194,2]
[368832746,1751375451198,-591.25,0.00018194,2]
[368832747,1751375451207,-460.0,0.00018194,2]
[368832748,1751375451217,-460.0,0.00018194,2]
[368832749,1751375451227,-460.0,0.00018194,2]
[368832750,1751375451236,-460.0,0.00018194,2]
[368832751,1751375451246,-460.0,0.00018194,2]
[368832752,1751375451255,-460.0,0.00018194,2]
[368832753,1751375451265,-508.76346539,0.00018194,2]
[368832754,1751375451274,-460.0,0.00018194,2]
[368832755,1751375451284,-460.0,0.00018194,2]
[368832756,1751375451294,-424.21525838,0.00018194,2]
[368832757,1751375451303,-460.0,0.00018194,2]
[368832758,1751375451313,-460.0,0.00018194,2]
[368832759,1751375451322,-460.0,0.00018194,2]
[368832760,1751375451332,-460.0,0.00018194,2]
[368832761,1751375451341,-460.0,0.00018194,2]
[368832762,1751375451351,-410.16921596,0.00018194,2]
[368832763,1751375451360,-460.0,0.00018194,2]
[368832765,1751375451371,-460.0,0.00018194,2]
[368832767,1751375451381,-460.0,0.00018194,2]
[368832769,1751375451390,-460.0,0.00018194,2]
[368832771,1751375451402,-1036.36,0.00018194,2]
[368832773,1751375451412,-460.0,0.00018194,2]
[368832775,1751375451422,-511.22,0.00018194,2]
[368832777,1751375451432,-460.0,0.00018194,2]
[368832779,1751375451442,-529.41,0.00018194,2]
[368832781,1751375451452,-460.0,0.00018194,2]
[368832783,1751375451461,-1113.07,0.00018194,2]
[368832785,1751375451471,-460.0,0.00018194,2]
[368832787,1751375451482,-481.36587145,0.00018194,2]
[368832789,1751375451491,-392.67985576,0.00018194,2]
[368832791,1751375451500,-460.0,0.00018194,2]
[368832793,1751375451510,-151.0,0.00018194,2]
[368832803,1751375451593,-151.0,0.00018194,2]
[368832805,1751375451603,-436.39,0.00018194,2]
[368832807,1751375451613,-460.0,0.00018194,2]
[368832809,1751375451623,-151.0,0.00018194,2]
[368832811,1751375451633,-460.0,0.00018194,2]
[368832813,1751375451643,-460.0,0.00018194,2]
[368832815,1751375451653,-460.0,0.00018194,2]
[368832817,1751375451662,-460.0,0.00018194,2]
[368832819,1751375451671,-555.41,0.00018194,2]
[368832821,1751375451680,-151.0,0.00018194,2]
[368832823,1751375451690,-329.834907,0.00018194,2]
[368832825,1751375451700,-460.0,0.00018194,2]
[368832827,1751375451713,-329.834907,0.00018194,2]
[368832829,1751375451723,-151.0,0.00018194,2]
[368832831,1751375451733,-460.0,0.00018194,2]
[368832833,1751375451743,-460.0,0.00018194,2]
[368832835,1751375451753,-460.0,0.00018194,2]
[368832837,1751375451762,-151.0,0.00018194,2]
[368832839,1751375451771,-460.0,0.00018194,2]
[368832841,1751375451781,-554.69,0.00018194,2]
[368832843,1751375451791,-460.0,0.00018194,2]
[368832845,1751375451803,-460.0,0.00018194,2]
[368832847,1751375451813,-460.0,0.00018194,2]
[368832849,1751375451823,-460.0,0.00018194,2]
[368832851,1751375451833,-460.0,0.00018194,2]
[368832853,1751375451843,-5098.55,0.00018194,2]
[368832855,1751375451853,-502.96695621,0.00018194,2]
[368832857,1751375451863,-885.07,0.00018194,2]
[368832859,1751375451873,-460.0,0.00018194,2]
[368832861,1751375451883,-460.0,0.00018194,2]
[368832863,1751375451893,-460.0,0.00018194,2]
[368832865,1751375451903,-1093.64,0.00018194,2]
[368832867,1751375451913,-534.44717751,0.00018194,2]
[368832869,1751375451922,-1367.97,0.00018194,2]
[368832871,1751375451931,-460.0,0.00018194,2]
[368832873,1751375451940,-460.0,0.00018194,2]
[368832875,1751375451949,-580.86,0.00018194,2]
[368832877,1751375451959,-460.0,0.00018194,2]
[368832879,1751375451968,-460.0,0.00018195,2]
[368832881,1751375451978,-460.0,0.00018195,2]
[368832883,1751375451987,-460.0,0.00018195,2]
[368832885,1751375451996,-562.33,0.00018195,2]
[368832887,1751375452006,-169.40821158,0.00018195,2]
[368832889,1751375452015,-460.0,0.00018195,2]
[368832891,1751375452026,-460.0,0.00018195,2]
[368832893,1751375452035,-460.0,0.00018195,2]
[368832895,1751375452045,-460.0,0.00018195,2]
[368832898,1751375452055,-164.08433468,0.00018195,2]
[368832900,1751375452064,-460.0,0.00018195,2]
[368832902,1751375452074,-460.0,0.00018195,2]
[368832904,1751375452084,-460.0,0.00018195,2]
[368832906,1751375452094,-460.0,0.00018195,2]
[368832908,1751375452104,-460.0,0.00018195,2]
[368832910,1751375452114,-537.5,0.00018195,2]
[368832912,1751375452124,-500.0,0.00018195,2]
[368832914,1751375452134,-460.0,0.00018195,2]
[368832916,1751375452143,-460.0,0.00018195,2]
[368832918,1751375452153,-460.0,0.00018195,2]
[368832920,1751375452163,-460.0,0.00018195,2]
[368832922,1751375452172,-460.0,0.00018195,2]
[368832924,1751375452181,-460.0,0.00018195,2]
[368832926,1751375452190,-460.0,0.00018195,2]
[368832928,1751375452200,-460.0,0.00018195,2]
[368832930,1751375452210,-460.0,0.00018195,2]
[368832932,1751375452220,-151.0,0.00018195,2]
[368832934,1751375452229,-279.852506,0.00018195,2]
[368832936,1751375452239,-460.0,0.00018195,2]
[368832938,1751375452248,-151.0,0.00018195,2]
[368832940,1751375452257,-460.0,0.00018195,2]
[368832942,1751375452267,-299.731675,0.00018195,2]
[368832944,1751375452277,-460.0,0.00018195,2]
[368832946,1751375452287,-299.731675,0.00018195,2]
[368832948,1751375452296,-902.98,0.00018195,2]
[368832950,1751375452306,-460.0,0.00018195,2]
[368832952,1751375452315,-1429.29,0.00018195,2]
[368832954,1751375452325,-460.0,0.00018195,2]
[368832956,1751375452334,-460.0,0.00018195,2]
[368832958,1751375452343,-460.0,0.00018195,2]
[368832960,1751375452353,-460.0,0.00018195,2]
[368832962,1751375452362,-186.127068,0.00018195,2]
[368832964,1751375452371,-460.0,0.00018195,2]
[368832966,1751375452381,-629.44,0.00018195,2]
[368832968,1751375452390,-2335.14,0.00018195,2]
[368832970,1751375452402,-502.391511,0.00018195,2]
[368832972,1751375452412,-502.391511,0.00018195,2]
[368832974,1751375452421,-151.0,0.00018195,2]
[368832976,1751375452430,-460.0,0.00018195,2]
[368832978,1751375452440,-535.75950059,0.00018195,2]
[368832980,1751375452449,-460.0,0.00018195,2]
[368832982,1751375452459,-460.0,0.00018195,2]
[368832984,1751375452469,-763.4,0.00018195,2]
[368832986,1751375452480,-786.9,0.00018195,2]
[368832988,1751375452490,-460.0,0.00018195,2]
[368832990,1751375452499,-1640.44,0.00018195,2]
[368832992,1751375452508,-460.0,0.00018195,2]
[368832994,1751375452519,-460.0,0.00018195,2]
[368832996,1751375452528,-460.0,0.00018195,2]
[368832998,1751375452537,-460.0,0.00018195,2]
[368833000,1751375452547,-1403.77,0.00018195,2]
[368833002,1751375452556,-5761.22,0.00018195,2]
[368833004,1751375452566,-460.0,0.00018195,2]
[368833006,1751375452575,-460.0,0.00018195,2]
[368833008,1751375452585,-460.0,0.00018195,2]
[368833010,1751375452594,-400.0,0.00018195,2]
[368833012,1751375452603,-1823.42,0.00018195,2]
[368833014,1751375452613,-460.0,0.00018195,2]
[368833016,1751375452622,-460.0,0.00018195,2]
[368833018,1751375452631,-460.0,0.00018196,2]
[368833020,1751375452640,-460.0,0.00018197,2]
[368833022,1751375452650,-541.06,0.00018197,2]
[368833024,1751375452659,-197.96,0.00018197,2]
[368833026,1751375452669,-460.0,0.00018197,2]
[368833028,1751375452679,-460.0,0.00018197,2]
[368833030,1751375452688,-460.0,0.00018197,2]
[368833032,1751375452697,-460.0,0.00018197,2]
[368833034,1751375452706,-460.0,0.00018197,2]
[368833036,1751375452716,-460.0,0.00018197,2]
[368833038,1751375452726,-316.3780688,0.00018197,2]
[368833040,1751375452735,-334.54472788,0.00018197,2]
[368833042,1751375452744,-460.0,0.00018197,2]
[368833051,1751375452822,-460.0,0.00018197,2]
[368833053,1751375452831,-460.0,0.00018197,2]
[368833055,1751375452840,-460.0,0.00018197,2]
[368833057,1751375452850,-198.95782559,0.00018197,2]
[368833059,1751375452859,-471.223926,0.00018197,2]
[368833061,1751375452869,-460.0,0.00018197,2]
[368833063,1751375452878,-460.0,0.00018197,2]
[368833065,1751375452887,-460.0,0.00018197,2]
[368833067,1751375452896,-460.0,0.00018197,2]
[368833069,1751375452907,-460.0,0.00018197,2]
[368833071,1751375452916,-460.0,0.00018197,2]
[368833073,1751375452925,-460.0,0.00018197,2]
[368833075,1751375452935,-460.0,0.00018197,2]
[368833077,1751375452944,-260.378938,0.00018197,2]
[368833079,1751375452953,-460.0,0.00018197,2]
[368833081,1751375452963,-468.49924592,0.00018197,2]
[368833083,1751375452972,-460.0,0.00018197,2]
[368833085,1751375452981,-460.0,0.00018197,2]
[368833087,1751375452991,-460.0,0.00018199,2]
[368833089,1751375453001,-460.0,0.00018199,2]
[368833091,1751375453010,-460.0,0.00018199,2]
[368833093,1751375453020,-460.0,0.00018199,2]
[368833095,1751375453029,-460.0,0.00018199,2]
[368833097,1751375453039,-191.3088028,0.00018199,2]
[368833099,1751375453048,-460.0,0.00018199,2]
[368833101,1751375453057,-460.0,0.00018199,2]
[368833103,1751375453067,-460.0,0.00018199,2]
[368833105,1751375453076,-460.0,0.00018199,2]
[368833107,1751375453086,-460.0,0.00018199,2]
[368833109,1751375453095,-460.0,0.00018199,2]
[368833111,1751375453105,-151.0,0.00018199,2]
[368833113,1751375453114,-460.0,0.00018199,2]
[368833115,1751375453125,-460.0,0.00018199,2]
[368833117,1751375453134,-460.0,0.00018199,2]
[368833119,1751375453144,-151.0,0.000182,2]
[368833121,1751375453154,-501.68179861,0.00018221,2]
[368833124,1751375453164,-500.59761066,0.00018221,2]
[368833125,1751375453174,-724.00444455,0.00018221,2]
[368833127,1751375453183,-1000.0,0.00018221,2]
[368833129,1751375453193,-1000.0,0.00018221,2]
[368833131,1751375453202,-1003.20106831,0.00018221,2]
[368833133,1751375453211,-1000.0,0.00018221,2]
[368833135,1751375453221,-1000.0,0.00018221,2]
[368833137,1751375453231,-1000.0,0.00018221,2]
[368833139,1751375453240,-1000.0,0.00018221,2]
[368833141,1751375453250,-318.09057501,0.00018221,2]
[368833143,1751375453259,-1000.0,0.00018221,2]
[368833145,1751375453268,-1000.0,0.00018221,2]
[368833147,1751375453278,-500.0,0.00018221,2]
[368833149,1751375453288,-500.0,0.00018221,2]
[368833151,1751375453297,-1114.18597854,0.00018221,2]
[368833153,1751375453307,-330.76173713,0.00018221,2]
[368833155,1751375453316,-451.214272,0.00018221,2]
[368833157,1751375453325,-451.214272,0.00018221,2]
[368833159,1751375453335,-303.976092,0.00018221,2]
[368833161,1751375453344,-303.976092,0.00018221,2]
[368833163,1751375453353,-160.0,0.00018237,2]
[368833165,1751375453362,-160.0,0.00018237,2]
[368833167,1751375453372,-230.32585361,0.00018237,2]
[368833169,1751375453381,-847.53272281,0.00018237,2]
[368833171,1751375453391,-215.01728679,0.00018237,2]
[368833173,1751375453400,-837.20943635,0.00018237,2]
[368833176,1751375453413,-160.0,0.00018237,2]
[368833178,1751375453423,-12571.40790328,0.00018237,2]
[368833179,1751375453433,-160.0,0.00018237,2]
[368833182,1751375453443,-160.0,0.00018237,2]
[368833184,1751375453454,-213.87551669,0.00018237,2]
[368833186,1751375453464,-160.0,0.00018237,2]
[368833187,1751375453474,-160.0,0.00018237,2]
[368833189,1751375453485,-160.0,0.00018237,2]
[368833192,1751375453496,-160.0,0.00018237,2]
[368833194,1751375453506,-151.0,0.000184,2]
[368833195,1751375453515,-1000.0,0.000184,3]
[368833198,1751375453527,-460.0,0.00018463,2]
[368833199,1751375453536,-421.02929001,0.00018463,2]
[368833202,1751375453546,-460.0,0.00018466,2]
[368833203,1751375453556,-460.0,0.00018466,2]
[368833206,1751375453566,-460.0,0.00018466,2]
[368833208,1751375453576,-460.0,0.00018466,2]
[368833209,1751375453585,-460.0,0.00018466,2]
[368833211,1751375453595,-2375.85,0.00018466,2]
[368833213,1751375453604,-460.0,0.00018466,2]
[368833215,1751375453613,-460.0,0.00018467,2]
[368833216,1751375453623,-460.0,0.00018467,2]
[368833217,1751375453632,-460.0,0.00018467,2]
[368833218,1751375453642,-460.0,0.00018467,2]
[368833219,1751375453651,-2481.69,0.00018467,2]
[368833220,1751375453661,-595.26,0.00018467,2]
[368833221,1751375453671,-517.43,0.00018467,2]
[368833222,1751375453680,-460.0,0.00018467,2]
[368833224,1751375453690,-460.0,0.00018467,2]
[368833226,1751375453699,-2638.53,0.00018467,2]
[368833228,1751375453709,-460.0,0.00018467,2]
[368833230,1751375453719,-460.0,0.00018467,2]
[368833232,1751375453729,-2689.06,0.00018467,2]
[368833234,1751375453739,-642.95,0.00018467,2]
[368833235,1751375453749,-460.0,0.00018467,2]
[368833237,1751375453758,-460.0,0.00018467,2]
[368833239,1751375453767,-460.0,0.00018467,2]
[368833241,1751375453777,-460.0,0.00018467,2]
[368833243,1751375453787,-460.0,0.00018467,2]
[368833245,1751375453796,-2422.25,0.00018467,2]
[368833247,1751375453805,-3359.88,0.00018467,2]
[368833249,1751375453816,-466.41914392,0.00018467,2]
[368833252,1751375453828,-460.0,0.00018467,2]
[368833254,1751375453837,-298.64034282,0.00018467,2]
[368833256,1751375453847,-460.0,0.00018467,2]
[368833258,1751375453856,-460.0,0.00018467,2]
[368833259,1751375453865,-1616.51,0.00018467,2]
[368833261,1751375453875,-151.0,0.00018467,2]
[368833272,1751375453958,-460.0,0.00018467,2]
[368833274,1751375453968,-460.0,0.00018467,2]
[368833276,1751375453979,-151.0,0.00018467,2]
[368833278,1751375453989,-296.553885,0.00018467,2]
[368833280,1751375453998,-1927.65,0.00018467,2]
[368833282,1751375454008,-460.0,0.00018467,2]
[368833284,1751375454018,-151.0,0.00018467,2]
[368833286,1751375454027,-460.0,0.00018467,2]
[368833288,1751375454037,-705.67,0.00018467,2]
[368833290,1751375454046,-374.37674352,0.00018468,2]
[368833292,1751375454056,-460.0,0.00018468,2]
[368833294,1751375454065,-588.12,0.00018468,2]
[368833296,1751375454075,-460.0,0.00018468,2]
[368833298,1751375454084,-460.0,0.00018468,2]
[368833300,1751375454093,-460.0,0.00018468,2]
[368833302,1751375454103,-775.82,0.00018468,2]
[368833304,1751375454112,-460.0,0.00018468,2]
[368833306,1751375454121,-460.0,0.00018468,2]
[368833308,1751375454131,-460.0,0.00018468,2]
[368833310,1751375454140,-157.47700191,0.00018468,2]
[368833312,1751375454149,-460.0,0.00018468,2]
[368833314,1751375454159,-460.0,0.00018468,2]
[368833316,1751375454168,-460.0,0.00018468,2]
[368833318,1751375454178,-460.0,0.00018468,2]
[368833320,1751375454187,-339.12484071,0.00018468,2]
[368833322,1751375454197,-460.0,0.00018468,2]
[368833324,1751375454206,-460.0,0.00018468,2]
[368833326,1751375454216,-460.0,0.00018468,2]
[368833328,1751375454225,-1036.36,0.00018468,2]
[368833330,1751375454235,-460.0,0.00018468,2]
[368833332,1751375454244,-511.22,0.00018468,2]
[368833334,1751375454253,-529.41,0.00018468,2]
[368833336,1751375454263,-239.84910029,0.00018468,2]
[368833338,1751375454272,-1113.07,0.00018468,2]
[368833340,1751375454281,-460.0,0.00018468,2]
[368833342,1751375454291,-460.0,0.00018468,2]
[368833343,1751375454300,-460.0,0.00018468,2]
[368833345,1751375454309,-460.0,0.00018468,2]
[368833347,1751375454318,-460.0,0.00018468,2]
[368833349,1751375454328,-460.0,0.00018468,2]
[368833352,1751375454339,-460.0,0.00018468,2]
[368833354,1751375454349,-555.41,0.00018468,2]
[368833356,1751375454359,-460.0,0.00018468,2]
[368833358,1751375454369,-460.0,0.00018468,2]
[368833360,1751375454379,-460.0,0.00018468,2]
[368833362,1751375454389,-460.0,0.00018468,2]
[368833364,1751375454399,-554.69,0.00018468,2]
[368833366,1751375454414,-460.0,0.00018468,2]
[368833367,1751375454423,-460.0,0.00018468,2]
[368833370,1751375454433,-460.0,0.00018468,2]
[368833371,1751375454444,-460.0,0.00018468,2]
[368833374,1751375454454,-5098.55,0.00018468,2]
[368833376,1751375454467,-885.07,0.00018468,2]
[368833379,1751375454487,-460.0,0.00018468,2]
[368833382,1751375454503,-460.0,0.00018468,2]
[368833385,1751375454523,-460.0,0.00018468,2]
[368833388,1751375454542,-1093.64,0.00018468,2]
[368833391,1751375454560,-1367.97,0.00018468,2]
[368833394,1751375454577,-460.0,0.00018468,2]
[368833396,1751375454593,-460.0,0.00018468,2]
[368833399,1751375454606,-580.86,0.00018468,2]
[368833402,1751375454626,-460.0,0.00018468,2]
[368833405,1751375454644,-460.0,0.00018469,2]
[368833408,1751375454660,-460.0,0.00018469,2]
[368833410,1751375454674,-460.0,0.00018469,2]
[368833413,1751375454692,-562.33,0.00018469,2]
[368833416,1751375454707,-247.7,0.00018469,2]
[368833418,1751375454723,-460.0,0.00018469,2]
[368833421,1751375454740,-460.0,0.00018469,2]
[368833424,1751375454757,-528.88518199,0.00018469,2]
[368833426,1751375454773,-460.0,0.00018469,2]
[368833429,1751375454791,-460.0,0.00018469,2]
[368833432,1751375454807,-460.0,0.00018469,2]
[368833434,1751375454821,-460.0,0.00018469,2]
[368833437,1751375454836,-460.0,0.00018469,2]
[368833440,1751375454852,-460.0,0.00018469,2]
[368833442,1751375454868,-460.0,0.00018469,2]
[368833445,1751375454883,-460.0,0.00018469,2]
[368833447,1751375454898,-460.0,0.00018469,2]
[368833450,1751375454914,-460.0,0.00018469,2]
[368833452,1751375454931,-460.0,0.00018469,2]
[368833455,1751375454948,-460.0,0.00018469,2]
[368833458,1751375454964,-460.0,0.00018469,2]
[368833461,1751375454980,-460.0,0.00018469,2]
[368833463,1751375454996,-902.98,0.00018469,2]
[368833466,1751375455011,-460.0,0.00018469,2]
[368833469,1751375455026,-1429.29,0.00018469,2]
[368833471,1751375455040,-506.86,0.00018469,2]
[368833474,1751375455056,-460.0,0.00018469,2]
[368833476,1751375455072,-460.0,0.00018469,2]
[368833479,1751375455086,-460.0,0.00018469,2]
[368833481,1751375455101,-151.0,0.00018469,2]
[368833484,1751375455118,-151.0,0.00018469,2]
[368833487,1751375455133,-154.359201,0.00018469,2]
[368833489,1751375455147,-460.0,0.00018469,2]
[368833492,1751375455163,-629.44,0.00018469,2]
[368833494,1751375455178,-2335.14,0.00018469,2]
[368833497,1751375455193,-151.0,0.00018469,2]
[368833499,1751375455207,-151.0,0.00018469,2]
[368833502,1751375455221,-460.0,0.00018469,2]
[368833504,1751375455235,-460.0,0.00018469,2]
[368833516,1751375455332,-460.0,0.00018469,2]
[368833518,1751375455357,-240.56344,0.00018469,2]
[368833520,1751375455367,-763.4,0.00018469,2]
[368833522,1751375455378,-786.9,0.00018469,2]
[368833524,1751375455388,-240.56344,0.00018469,2]
[368833526,1751375455399,-460.0,0.00018469,2]
[368833529,1751375455418,-151.0,0.00018469,2]
[368833531,1751375455429,-1640.44,0.00018469,2]
[368833532,1751375455440,-460.0,0.00018469,2]
[368833535,1751375455451,-460.0,0.00018469,2]
[368833536,1751375455467,-460.0,0.00018469,2]
[368833537,1751375455478,-1403.77,0.00018469,2]
[368833538,1751375455491,-5761.22,0.00018469,2]
[368833539,1751375455503,-460.0,0.00018469,2]
[368833540,1751375455514,-460.0,0.00018469,2]
[368833541,1751375455525,-460.0,0.00018469,2]
[368833542,1751375455536,-1823.42,0.00018469,2]
[368833543,1751375455547,-460.0,0.00018469,2]
[368833544,1751375455558,-460.0,0.00018469,2]
[368833545,1751375455568,-151.0,0.0001847,2]
[368833546,1751375455579,-151.0,0.0001847,2]
[368833547,1751375455588,-296.927388,0.0001847,2]
[368833548,1751375455597,-151.0,0.0001847,2]
[368833549,1751375455605,-190.315045,0.0001847,2]
[368833550,1751375455614,-190.315045,0.0001847,2]
[368833551,1751375455622,-839.715903,0.0001847,2]
[368833552,1751375455631,-839.715903,0.0001847,2]
[368833553,1751375455639,-531.621476,0.0001847,2]
[368833554,1751375455650,-460.0,0.0001847,2]
[368833555,1751375455660,-151.0,0.0001847,2]
[368833557,1751375455675,-151.0,0.0001847,2]
[368833559,1751375455685,-151.0,0.0001847,2]
[368833560,1751375455696,-151.0,0.0001847,2]
[368833562,1751375455707,-329.834907,0.0001847,2]
[368833564,1751375455718,-329.834907,0.0001847,2]
[368833567,1751375455729,-151.0,0.0001847,2]
[368833568,1751375455740,-151.0,0.0001847,2]
[368833570,1751375455750,-400.81,0.00018471,2]
[368833572,1751375455761,-460.0,0.00018471,2]
[368833574,1751375455772,-207.73717804,0.00018471,2]
[368833576,1751375455782,-460.0,0.00018471,2]
[368833579,1751375455793,-460.0,0.00018471,2]
[368833580,1751375455805,-460.0,0.00018471,2]
[368833582,1751375455816,-460.0,0.00018471,2]
[368833584,1751375455827,-460.0,0.00018471,2]
[368833586,1751375455838,-460.0,0.00018471,2]
[368833588,1751375455849,-460.0,0.00018471,2]
[368833590,1751375455859,-460.0,0.00018471,2]
[368833592,1751375455870,-460.0,0.00018471,2]
[368833594,1751375455881,-196.91383156,0.00018471,2]
[368833596,1751375455890,-460.0,0.00018473,2]
[368833598,1751375455902,-464.03078145,0.00018473,2]
[368833600,1751375455912,-548.88000298,0.00018473,2]
[368833602,1751375455926,-460.0,0.00018473,2]
[368833604,1751375455936,-460.0,0.00018473,2]
[368833606,1751375455945,-460.0,0.00018473,2]
[368833608,1751375455955,-460.0,0.00018473,2]
[368833610,1751375455965,-494.45,0.00018473,2]
[368833612,1751375455975,-151.0,0.000185,2]
[368833613,1751375455984,-151.0,0.00018501,2]
[368833615,1751375455993,-151.0,0.00018501,2]
[368833617,1751375456003,-270.806773,0.00018501,2]
[368833619,1751375456013,-151.0,0.00018501,2]
[368833621,1751375456022,-270.806773,0.00018501,2]
[368833623,1751375456032,-151.0,0.00018501,2]
[368833625,1751375456042,-151.0,0.00018501,2]
[368833627,1751375456051,-151.0,0.00018501,2]
[368833629,1751375456061,-616.479557,0.00018501,2]
[368833631,1751375456070,-616.479557,0.00018501,2]
[368833633,1751375456080,-756.105498,0.00018501,2]
[368833635,1751375456089,-756.105498,0.00018501,2]
[368833637,1751375456099,-2804.0891462,0.00018624,2]
[368833639,1751375456108,-151.0,0.000187,2]
[368833641,1751375456118,-170.23712706,0.00018737,2]
[368833643,1751375456128,-539.60574898,0.0001874,2]
[368833645,1751375456137,-460.0,0.0001874,2]
[368833647,1751375456147,-460.0,0.0001874,2]
[368833649,1751375456157,-460.0,0.0001874,2]
[368833651,1751375456169,-2375.85,0.0001874,2]
[368833653,1751375456179,-460.0,0.0001874,2]
[368833655,1751375456188,-460.0,0.00018741,2]
[368833657,1751375456197,-503.46,0.00018741,2]
[368833659,1751375456207,-460.0,0.00018741,2]
[368833661,1751375456217,-2481.69,0.00018741,2]
[368833663,1751375456227,-595.26,0.00018741,2]
[368833665,1751375456236,-517.43,0.00018741,2]
[368833667,1751375456246,-520.04,0.00018741,2]
[368833669,1751375456255,-460.0,0.00018741,2]
[368833671,1751375456266,-2638.53,0.00018741,2]
[368833673,1751375456280,-460.0,0.00018741,2]
[368833675,1751375456290,-2689.06,0.00018741,2]
[368833677,1751375456300,-642.95,0.00018741,2]
[368833679,1751375456309,-460.0,0.00018741,2]
[368833681,1751375456319,-460.0,0.00018741,2]
[368833683,1751375456330,-2422.25,0.00018741,2]
[368833685,1751375456340,-3359.88,0.00018741,2]
[368833687,1751375456351,-460.0,0.00018741,2]
[368833689,1751375456360,-460.0,0.00018741,2]
[368833691,1751375456371,-1616.51,0.00018741,2]
[368833693,1751375456382,-460.0,0.00018741,2]
[368833695,1751375456392,-460.0,0.00018741,2]
[368833697,1751375456403,-1927.65,0.00018741,2]
[368833699,1751375456414,-448.7304356,0.00018741,2]
[368833701,1751375456426,-460.0,0.00018741,2]
[368833703,1751375456436,-705.67,0.00018741,2]
[368833705,1751375456447,-460.0,0.00018742,2]
[368833707,1751375456457,-460.0,0.00018742,2]
[368833709,1751375456467,-460.0,0.00018742,2]
[368833711,1751375456478,-460.0,0.00018742,2]
[368833713,1751375456489,-775.82,0.00018742,2]
[368833716,1751375456500,-263.04,0.00018742,2]
[368833717,1751375456510,-460.0,0.00018742,2]
[368833719,1751375456519,-460.0,0.00018742,2]
[368833729,1751375456604,-460.0,0.00018742,2]